fUSD/lending_fUSD_20240714
["ID","MTS","AMOUNT","RATE_DAILY","PERIOD"]
[332110467,1720967451132,-500.0,0.00013753,2]
[332110468,1720967451144,-500.0,0.00013753,2]
[332110469,1720967451154,-500.0,0.00013753,2]
[332110470,1720967451163,-500.0,0.00013753,2]
[332110471,1720967451173,-500.0,0.00013753,2]
[332110472,1720967451182,-500.0,0.00013753,2]
[332110473,1720967451191,-500.0,0.00013753,2]
[332110474,1720967451200,-500.0,0.00013753,2]
[332110475,1720967451210,-599.88,0.00013753,2]
[332110476,1720967451219,-512.95092246,0.00013753,2]
[332110477,1720967451229,-500.0,0.00013753,2]
[332110478,1720967451239,-500.0,0.00013753,2]
[332110479,1720967451248,-500.0,0.00013753,2]
[332110480,1720967451257,-500.0,0.00013753,2]
[332110481,1720967451267,-500.0,0.00013753,2]
[332110482,1720967451276,-500.0,0.00013753,2]
[332110483,1720967451286,-500.0,0.00013753,2]
[332110484,1720967451295,-500.0,0.00013753,2]
[332110485,1720967451304,-500.0,0.00013753,2]
[332110486,1720967451314,-500.0,0.00013753,2]
[332110487,1720967451323,-500.0,0.00013753,2]
[332110488,1720967451332,-500.0,0.00013753,2]
[332110489,1720967451341,-500.0,0.00013753,2]
[332110490,1720967451351,-638.38142584,0.00013753,2]
[332110491,1720967451361,-500.0,0.00013753,2]
[332110492,1720967451370,-500.0,0.00013753,2]
[332110493,1720967451379,-500.0,0.00013753,2]
[332110494,1720967451389,-500.0,0.00013753,2]
[332110495,1720967451402,-500.0,0.00013753,2]
[332110496,1720967451411,-500.0,0.00013753,2]
[332110497,1720967451420,-500.0,0.00013753,2]
[332110498,1720967451429,-500.0,0.00013753,2]
[332110499,1720967451438,-276.7540681,0.00013753,2]
[332110500,1720967451447,-500.0,0.00013753,2]
[332110501,1720967451457,-724.83,0.00013753,2]
[332110502,1720967451466,-500.0,0.00013753,2]
[332110503,1720967451475,-500.0,0.00013753,2]
[332110504,1720967451484,-500.0,0.00013753,2]
[332110505,1720967451493,-500.0,0.00013753,2]
[332110506,1720967451503,-500.0,0.00013753,2]
[332110507,1720967451511,-500.0,0.00013753,2]
[332110508,1720967451520,-499.21166855,0.00013753,2]
[332110509,1720967451529,-500.0,0.00013753,2]
[332110510,1720967451538,-500.0,0.00013753,2]
[332110511,1720967451548,-500.0,0.00013753,2]
[332110512,1720967451557,-500.0,0.00013753,2]
[332110513,1720967451566,-500.0,0.00013753,2]
[332110514,1720967451575,-500.0,0.00013753,2]
[332110515,1720967451584,-500.0,0.00013753,2]
[332110516,1720967451594,-633.86,0.00013753,2]
[332110517,1720967451603,-500.0,0.00013753,2]
[332110518,1720967451612,-500.0,0.00013753,2]
[332110519,1720967451622,-500.0,0.00013753,2]
[332110520,1720967451631,-500.0,0.00013753,2]
[332110521,1720967451639,-639.86841933,0.00013753,2]
[332110522,1720967451651,-500.0,0.00013753,2]
[332110523,1720967451660,-500.0,0.00013753,2]
[332110524,1720967451670,-500.0,0.00013753,2]
[332110525,1720967451680,-500.0,0.00013753,2]
[332110526,1720967451690,-500.0,0.00013753,2]
[332110527,1720967451700,-500.0,0.00013753,2]
[332110528,1720967451710,-500.0,0.00013753,2]
[332110529,1720967451722,-500.0,0.00013753,2]
[332110530,1720967451732,-500.0,0.00013753,2]
[332110531,1720967451742,-589.98,0.00013753,2]
[332110532,1720967451751,-500.0,0.00013753,2]
[332110533,1720967451760,-1190.91,0.00013753,2]
[332110534,1720967451769,-500.0,0.00013753,2]
[332110535,1720967451778,-500.0,0.00013753,2]
[332110536,1720967451788,-546.58,0.00013753,2]
[332110537,1720967451799,-590.88,0.00013753,2]
[332110538,1720967451808,-500.0,0.00013753,2]
[332110539,1720967451817,-500.0,0.00013753,2]
[332110540,1720967451826,-500.0,0.00013753,2]
[332110541,1720967451835,-500.0,0.00013753,2]
[332110542,1720967451844,-500.0,0.00013753,2]
[332110543,1720967451854,-500.0,0.00013753,2]
[332110544,1720967451863,-500.0,0.00013753,2]
[332110545,1720967451873,-897.51,0.00013753,2]
[332110546,1720967451883,-500.0,0.00013753,2]
[332110547,1720967451897,-500.0,0.00013753,2]
[332110548,1720967451906,-500.0,0.00013753,2]
[332110549,1720967451916,-500.0,0.00013753,2]
[332110550,1720967451926,-1429.15,0.00013753,2]
[332110551,1720967451935,-500.0,0.00013753,2]
[332110552,1720967451944,-500.0,0.00013753,2]
[332110553,1720967451953,-500.0,0.00013753,2]
[332110554,1720967451965,-500.0,0.00013753,2]
[332110555,1720967451974,-500.0,0.00013753,2]
[332110556,1720967451983,-500.0,0.00013753,2]
[332110557,1720967451992,-849.09,0.00013753,2]
[332110558,1720967452002,-500.0,0.00013753,2]
[332110559,1720967452011,-500.0,0.00013753,2]
[332110560,1720967452022,-500.0,0.00013753,2]
[332110561,1720967452032,-500.0,0.00013753,2]
[332110562,1720967452043,-500.0,0.00013753,2]
[332110563,1720967452054,-500.0,0.00013753,2]
[332110564,1720967452063,-500.0,0.00013753,2]
[332110565,1720967452073,-500.0,0.00013753,2]
[332110566,1720967452084,-500.0,0.00013753,2]
[332110567,1720967452095,-500.0,0.00013753,2]
[332110568,1720967452107,-622.09,0.00013753,2]
[332110569,1720967452116,-1320.01,0.00013753,2]
[332110570,1720967452126,-500.0,0.00013753,2]
[332110571,1720967452135,-500.0,0.00013753,2]
[332110572,1720967452144,-500.0,0.00013753,2]
[332110573,1720967452154,-235.97188508,0.00013753,2]
[332110574,1720967452163,-500.0,0.00013753,2]
[332110575,1720967452173,-500.0,0.00013753,2]
[332110576,1720967452182,-500.0,0.00013753,2]
[332110577,1720967452191,-500.0,0.00013753,2]
[332110578,1720967452201,-642.72,0.00013753,2]
[332110579,1720967452210,-500.0,0.00013753,2]
[332110580,1720967452219,-500.0,0.00013753,2]
[332110581,1720967452229,-500.0,0.00013753,2]
[332110582,1720967452238,-500.0,0.00013753,2]
[332110583,1720967452248,-500.0,0.00013753,2]
[332110584,1720967452257,-500.0,0.00013753,2]
[332110585,1720967452267,-500.0,0.00013753,2]
[332110586,1720967452276,-257.3,0.00013753,2]
[332110587,1720967452285,-2372.0,0.00013753,2]
[332110588,1720967452294,-500.0,0.00013753,2]
[332110589,1720967452304,-500.0,0.00013753,2]
[332110590,1720967452313,-500.0,0.00013753,2]
[332110591,1720967452322,-272.48,0.00013753,2]
[332110592,1720967452332,-500.0,0.00013753,2]
[332110593,1720967452341,-500.0,0.00013753,2]
[332110594,1720967452351,-500.0,0.00013753,2]
[332110595,1720967452360,-500.0,0.00013753,2]
[332110596,1720967452369,-500.0,0.00013753,2]
[332110597,1720967452379,-500.0,0.00013753,2]
[332110598,1720967452390,-500.0,0.00013753,2]
[332110599,1720967452401,-500.0,0.00013753,2]
[332110600,1720967452410,-517.14,0.00013753,2]
[332110601,1720967452419,-2322.95,0.00013753,2]
[332110602,1720967452428,-500.0,0.00013753,2]
[332110603,1720967452437,-500.0,0.00013753,2]
[332110604,1720967452446,-1748.93677,0.00013753,2]
[332110605,1720967452455,-500.0,0.00013753,2]
[332110606,1720967452464,-747.0,0.00013753,2]
[332110607,1720967452473,-576.35,0.00013753,2]
[332110608,1720967452483,-500.0,0.00013753,2]
[332110609,1720967452492,-500.0,0.00013753,2]
[332110610,1720967452501,-500.0,0.00013753,2]
[332110611,1720967452511,-500.0,0.00013753,2]
[332110612,1720967452520,-298.11,0.00013753,2]
[332110613,1720967452538,-500.0,0.00013753,2]
[332110614,1720967452548,-596.1,0.00013753,2]
[332110615,1720967452557,-500.0,0.00013753,2]
[332110616,1720967452567,-500.0,0.00013753,2]
[332110617,1720967452576,-500.0,0.00013753,2]
[332110618,1720967452585,-500.0,0.00013753,2]
[332110619,1720967452595,-500.0,0.00013753,2]
[332110620,1720967452604,-500.0,0.00013753,2]
[332110621,1720967452613,-500.0,0.00013753,2]
[332110622,1720967452623,-500.0,0.00013753,2]
[332110623,1720967452632,-500.0,0.00013753,2]
[332110624,1720967452641,-500.0,0.00013753,2]
[332110625,1720967452652,-500.0,0.00013753,2]
[332110626,1720967452661,-500.0,0.00013753,2]
[332110627,1720967452670,-500.0,0.00013753,2]
[332110628,1720967452680,-500.0,0.00013753,2]
[332110629,1720967452689,-500.0,0.00013753,2]
[332110630,1720967452699,-500.0,0.00013753,2]
[332110631,1720967452710,-500.0,0.00013753,2]
[332110632,1720967452720,-500.0,0.00013753,2]
[332110633,1720967452730,-500.0,0.00013753,2]
[332110634,1720967452741,-500.0,0.00013753,2]
[332110635,1720967452750,-500.0,0.00013753,2]
[332110636,1720967452759,-500.0,0.00013753,2]
[332110637,1720967452769,-500.0,0.00013753,2]
[332110638,1720967452779,-500.0,0.00013753,2]
[332110639,1720967452790,-500.0,0.00013753,2]
[332110640,1720967452800,-500.0,0.00013753,2]
[332110641,1720967452810,-500.0,0.00013753,2]
[332110642,1720967452822,-500.0,0.00013753,2]
[332110643,1720967452832,-500.0,0.00013753,2]
[332110644,1720967452842,-500.0,0.00013753,2]
[332110645,1720967452854,-500.0,0.00013753,2]
[332110646,1720967452865,-500.0,0.00013753,2]
[332110647,1720967452880,-500.0,0.00013753,2]
[332110648,1720967452891,-500.0,0.00013753,2]
[332110649,1720967452901,-500.0,0.00013753,2]
[332110650,1720967452910,-500.0,0.00013753,2]
[332110651,1720967452921,-500.0,0.00013753,2]
[332110652,1720967452931,-2207.02,0.00013753,2]
[332110653,1720967452941,-500.0,0.00013753,2]
[332110654,1720967452953,-500.0,0.00013753,2]
[332110655,1720967452964,-500.0,0.00013753,2]
[332110656,1720967452973,-500.0,0.00013753,2]
[332110657,1720967452982,-500.0,0.00013753,2]
[332110658,1720967452992,-500.0,0.00013753,2]
[332110659,1720967453001,-500.0,0.00013753,2]
[332110660,1720967453011,-500.0,0.00013753,2]
[332110661,1720967453235,-500.0,0.00013753,2]
[332110662,1720967453246,-300.0,0.00013758,2]
[332110663,1720967453255,-11004.34158491,0.00013759,2]
[332110664,1720967453264,-8150.45670392,0.00013797,2]
[332110665,1720967453274,-1369.25730673,0.00013799,5]
[332110666,1720967453283,-353.61908933,0.00013799,2]
[332110667,1720967453292,-593.11480411,0.00013799,2]
[332110668,1720967453301,-500.0,0.00013799,2]
[332110669,1720967453310,-500.0,0.00013799,2]
[332110670,1720967453319,-500.0,0.00013799,2]
[332110671,1720967453328,-500.0,0.00013799,2]
[332110672,1720967453339,-500.0,0.00013799,2]
[332110673,1720967453348,-500.0,0.00013799,2]
[332110674,1720967453357,-307.89,0.00013799,2]
[332110675,1720967453366,-8422.18994444,0.00013799,2]
[332110676,1720967453377,-8422.18994436,0.00013799,2]
[332110677,1720967453386,-8422.18994436,0.00013799,2]
[332110678,1720967453399,-8422.18994436,0.00013799,2]
[332110679,1720967453412,-8422.18994436,0.00013799,2]
[332110680,1720967453422,-8422.18994436,0.00013799,2]
[332110681,1720967453431,-8422.18994436,0.00013799,2]
[332110682,1720967453440,-8422.18994436,0.00013799,2]
[332110683,1720967453450,-8422.18994436,0.00013799,2]
[332110684,1720967453459,-8422.18994436,0.00013799,2]
[332110685,1720967453468,-554.023729,0.00013799,2]
[332110686,1720967453477,-554.023729,0.00013799,2]
[332110687,1720967453486,-245.645286,0.00013799,2]
[332110688,1720967453495,-245.645286,0.00013799,2]
[332110689,1720967453504,-689.0,0.000138,2]
[332110690,1720967453514,-162283.75082882,0.000138,2]
[332110691,1720967453795,-8571.89705668,0.000138,2]
[332110692,1720967453807,-1314.96198519,0.000138,2]
[332110693,1720967453818,-2195.05789206,0.000138,2]
[332110694,1720967453830,-5650.985085,0.000138,2]
[332110695,1720967453840,-711831.0829437,0.000138,2]
[332110696,1720967453851,-667.48068797,0.000138,2]
[332110697,1720967453863,-422.24066894,0.000138,2]
[332110698,1720967453877,-463.59153086,0.000138,2]
[332110699,1720967453995,-475.70610573,0.000138,2]
[332110700,1720967454006,-1561.82151583,0.000138,2]
[332110701,1720967454018,-800.71325998,0.000138,2]
[332110705,1720967645487,369.07,0.00010885,2]
[332110718,1720968237974,371.11,0.0001056,2]
[332110749,1720968511298,-300.0,0.00011097,2]
[332110750,1720968511331,-150.0,0.00011097,2]
[332110751,1720968511356,-3652.0,0.00011098,2]
[332110764,1720968634169,-300.0,0.00011097,2]
[332110765,1720968634181,-31.24513146,0.00011098,2]
[332110766,1720968634191,-131.28703186,0.00011098,2]
[332110767,1720968634203,-280.56667432,0.00011098,2]
[332110768,1720968634279,-1915.46233707,0.00011098,2]
[332110769,1720968634290,-1984.53766293,0.00011098,2]
[332110770,1720968634302,-189.67274095,0.00011098,2]
[332110771,1720968634312,-556.77235968,0.00011098,2]
[332110772,1720968634325,-451.92492773,0.00011098,2]
[332110773,1720968634386,-300.094795,0.00011098,2]
[332110774,1720968634398,-1462.0580352,0.00011098,2]
[332110775,1720968634409,-2497.27465851,0.00011098,2]
[332110776,1720968634419,-209.88373878,0.00011098,2]
[332110777,1720968634431,-155.15446506,0.00011098,2]
[332110778,1720968634440,-197.54744095,0.00011098,2]
[332110779,1720968634451,-174.08157793,0.00011098,2]
[332110780,1720968634461,-1834.80770835,0.00011098,2]
[332110781,1720968634471,-5176.13327928,0.00011098,2]
[332110782,1720968634482,-718.22971183,0.00011098,2]
[332110783,1720968634492,-750.69984923,0.00011098,2]
[332110784,1720968634502,-1133.22331236,0.00011098,2]
[332110786,1720968634512,-651.82325305,0.00011098,2]
[332110788,1720968634522,-2311.50618299,0.00011098,2]
[332110790,1720968634531,-332.28819383,0.00011098,2]
[332110792,1720968634540,-563.79295769,0.00011098,2]
[332110794,1720968634550,-240.83727174,0.00011098,2]
[332110796,1720968634559,-155.27827546,0.00011098,2]
[332110798,1720968634568,-207.04545936,0.00011098,2]
[332110800,1720968634578,-1955.79941452,0.00011098,2]
[332110802,1720968634588,-534.0322715,0.00011098,2]
[332110804,1720968634837,-269.41553266,0.00011098,2]
[332110805,1720968634847,-218.39930659,0.00011098,2]
[332110806,1720968634857,-158.57970611,0.00011098,2]
[332110807,1720968634867,-218.39930659,0.00011098,2]
[332110808,1720968634877,-158.55014636,0.00011197,2]
[332110809,1720968634886,-685.74697469,0.00011199,2]
[332110810,1720968634895,-9186.39842429,0.00011199,2]
[332110811,1720968634905,-420.0,0.00012193,2]
[332110812,1720968634915,-23890.0,0.0001225,2]
[332110813,1720968634925,-250.0,0.00012296,2]
[332110814,1720968634935,-1322.77749777,0.00012302,2]
[332110815,1720968634944,-316.17326879,0.00012302,2]
[332110816,1720968634954,-1551.79,0.00012334,2]
[332110817,1720968634964,-500.0,0.00012362,2]
[332110818,1720968634975,-606.0,0.00012389,2]
[332110819,1720968634985,-173.54,0.00012405,2]
[332110820,1720968634994,-499.99,0.00012405,2]
[332110821,1720968635004,-1000.0,0.00012537,2]
[332110822,1720968635013,-250.0,0.00012617,2]
[332110823,1720968635023,-1000.0,0.00012651,2]
[332110824,1720968635032,-202.27,0.00012763,2]
[332110825,1720968635041,-1453.04,0.00012779,2]
[332110826,1720968635051,-371.11,0.00012824,2]
[332110827,1720968635061,-379.49848619,0.00013128,2]
[332110828,1720968635070,-304.0,0.00013158,2]
[332110829,1720968635080,-178.625947,0.00013305,2]
[332110830,1720968635091,-291.265078,0.00013305,2]
[332110831,1720968635101,-509.612806,0.00013305,2]
[332110832,1720968635112,-193.868125,0.00013305,2]
[332110833,1720968635122,-568.884936,0.00013305,2]
[332110834,1720968635132,-170.894474,0.00013305,2]
[332110835,1720968635141,-176.189922,0.00013305,2]
[332110836,1720968635152,-587.0,0.00013398,2]
[332110837,1720968635162,-150.0,0.000134,2]
[332110838,1720968635171,-71517.0,0.000134,2]
[332110839,1720968635182,-291.265078,0.00013471,2]
[332110840,1720968635192,-509.612806,0.00013471,2]
[332110841,1720968635201,-568.884936,0.00013471,2]
[332110842,1720968635211,-263.86139089,0.00013472,2]
[332110843,1720968635220,-252.02,0.00013589,3]
[332110844,1720968635230,-162.66784656,0.00013598,2]
[332110845,1720968635239,-233.44077147,0.00013598,2]
[332110846,1720968635249,-1000.0,0.00013598,2]
[332110847,1720968635263,-1000.0,0.00013598,2]
[332110848,1720968635273,-2500.0,0.00013598,2]
[332110849,1720968635283,-7500.0,0.00013598,2]
[332110850,1720968635292,-3271.78277745,0.000136,2]
[332110851,1720968635303,-4705.7756,0.000136,2]
[332110852,1720968635312,-233.44077147,0.00013621,2]
[332110853,1720968635322,-291.265078,0.00013638,2]
[332110854,1720968635334,-509.612806,0.00013638,2]
[332110855,1720968635343,-568.884936,0.00013638,2]
[332110856,1720968635352,-233.44077147,0.00013644,2]
[332110857,1720968635362,-483.0080244,0.00013653,2]
[332110858,1720968635372,-4164.831,0.00013665,2]
[332110859,1720968635381,-233.44077147,0.00013667,2]
[332110860,1720968635391,-406.6082,0.00013671,2]
[332110861,1720968635401,-483.0080244,0.00013672,2]
[332110862,1720968635411,-483.0080244,0.0001369,2]
[332110863,1720968635421,-233.44077147,0.0001369,2]
[332110864,1720968635431,-58000.0,0.00013691,2]
[332110865,1720968635441,-2843.74578093,0.00013695,2]
[332110866,1720968635451,-324920.27222036,0.00013697,2]
[332110867,1720968635461,-500.0,0.00013698,2]
[332110868,1720968635470,-315.7476657,0.00013698,2]
[332110869,1720968635480,-500.0,0.00013698,2]
[332110870,1720968635490,-500.0,0.00013698,2]
[332110871,1720968635500,-500.0,0.00013698,2]
[332110872,1720968635510,-500.0,0.00013698,2]
[332110873,1720968635519,-500.0,0.00013698,2]
[332110874,1720968635529,-500.0,0.00013698,2]
[332110875,1720968635538,-500.0,0.00013698,2]
[332110876,1720968635547,-500.0,0.00013698,2]
[332110877,1720968635556,-500.0,0.00013698,2]
[332110878,1720968635566,-500.0,0.00013698,2]
[332110879,1720968635576,-500.0,0.00013698,2]
[332110880,1720968635586,-500.0,0.00013698,2]
[332110881,1720968635595,-500.0,0.00013698,2]
[332110882,1720968635604,-500.0,0.00013698,2]
[332110883,1720968635614,-500.0,0.00013698,2]
[332110884,1720968635624,-500.0,0.00013698,2]
[332110885,1720968635633,-500.0,0.00013698,2]
[332110886,1720968635643,-500.0,0.00013698,2]
[332110887,1720968635653,-500.0,0.00013698,2]
[332110888,1720968635663,-500.0,0.00013698,2]
[332110889,1720968635673,-500.0,0.00013698,2]
[332110890,1720968635684,-500.0,0.00013698,2]
[332110891,1720968635694,-500.0,0.00013698,2]
[332110892,1720968635704,-500.0,0.00013698,2]
[332110893,1720968635713,-215.49002507,0.00013698,2]
[332110894,1720968635723,-500.0,0.00013698,2]
[332110895,1720968635732,-500.0,0.00013698,2]
[332110896,1720968635741,-500.0,0.00013698,2]
[332110897,1720968635750,-500.0,0.00013698,2]
[332110898,1720968635759,-500.0,0.00013698,2]
[332110899,1720968635769,-500.0,0.00013698,2]
[332110900,1720968635778,-500.0,0.00013698,2]
[332110901,1720968635787,-631.93,0.00013698,2]
[332110902,1720968635797,-500.0,0.00013698,2]
[332110903,1720968635806,-500.0,0.00013698,2]
[332110904,1720968635816,-500.0,0.00013698,2]
[332110905,1720968635825,-500.0,0.00013698,2]
[332110906,1720968635835,-500.0,0.00013698,2]
[332110907,1720968635844,-500.0,0.00013698,2]
[332110908,1720968635853,-500.0,0.00013698,2]
[332110909,1720968635862,-500.0,0.00013698,2]
[332110910,1720968635872,-500.0,0.00013698,2]
[332110911,1720968635881,-500.0,0.00013698,2]
[332110912,1720968635890,-500.0,0.00013698,2]
[332110913,1720968635900,-500.0,0.00013698,2]
[332110914,1720968635909,-500.0,0.00013698,2]
[332110915,1720968635919,-500.0,0.00013698,2]
[332110916,1720968635930,-641.61062421,0.00013698,2]
[332110917,1720968635939,-500.0,0.00013698,2]
[332110918,1720968635948,-500.0,0.00013698,2]
[332110919,1720968635958,-500.0,0.00013698,2]
[332110920,1720968635967,-500.0,0.00013698,2]
[332110921,1720968635977,-500.0,0.00013698,2]
[332110922,1720968635986,-500.0,0.00013698,2]
[332110923,1720968635996,-553.95,0.00013698,2]
[332110924,1720968636006,-500.0,0.00013698,2]
[332110925,1720968636015,-500.0,0.00013698,2]
[332110926,1720968636025,-500.0,0.00013698,2]
[332110927,1720968636035,-500.0,0.00013698,2]
[332110928,1720968636044,-500.0,0.00013698,2]
[332110929,1720968636054,-1547.88,0.00013698,2]
[332110930,1720968636063,-500.0,0.00013698,2]
[332110931,1720968636073,-500.0,0.00013698,2]
[332110932,1720968636083,-388.65171933,0.00013698,2]
[332110933,1720968636093,-500.0,0.00013698,2]
[332110934,1720968636103,-500.0,0.00013698,2]
[332110935,1720968636112,-500.0,0.00013698,2]
[332110936,1720968636122,-500.0,0.00013698,2]
[332110937,1720968636131,-500.0,0.00013698,2]
[332110938,1720968636142,-500.0,0.00013698,2]
[332110939,1720968636152,-500.0,0.00013698,2]
[332110940,1720968636162,-500.0,0.00013698,2]
[332110941,1720968636172,-500.0,0.00013698,2]
[332110942,1720968636183,-500.0,0.00013698,2]
[332110943,1720968636194,-500.0,0.00013698,2]
[332110944,1720968636203,-500.0,0.00013698,2]
[332110945,1720968636214,-500.0,0.00013698,2]
[332110946,1720968636224,-500.0,0.00013698,2]
[332110947,1720968636235,-500.0,0.00013698,2]
[332110948,1720968636246,-500.0,0.00013698,2]
[332110949,1720968636257,-500.0,0.00013698,2]
[332110950,1720968636269,-500.0,0.00013698,2]
[332110951,1720968636279,-272.29763784,0.00013698,2]
[332110952,1720968636288,-500.0,0.00013698,2]
[332110953,1720968636298,-500.0,0.00013698,2]
[332110954,1720968636308,-500.0,0.00013698,2]
[332110955,1720968636317,-500.0,0.00013698,2]
[332110956,1720968636327,-500.0,0.00013698,2]
[332110957,1720968636336,-500.0,0.00013698,2]
[332110958,1720968636348,-500.0,0.00013698,2]
[332110959,1720968636358,-500.0,0.00013698,2]
[332110960,1720968636367,-500.0,0.00013698,2]
[332110961,1720968636377,-500.0,0.00013698,2]
[332110962,1720968636386,-500.0,0.00013698,2]
[332110963,1720968636396,-500.0,0.00013698,2]
[332110964,1720968636406,-500.0,0.00013698,2]
[332110965,1720968636415,-500.0,0.00013698,2]
[332110966,1720968636425,-500.0,0.00013698,2]
[332110967,1720968636436,-500.0,0.00013698,2]
[332110968,1720968636445,-500.0,0.00013698,2]
[332110969,1720968636455,-500.0,0.00013698,2]
[332110970,1720968636465,-500.0,0.00013698,2]
[332110971,1720968636474,-500.0,0.00013698,2]
[332110972,1720968636484,-500.0,0.00013698,2]
[332110973,1720968636493,-500.0,0.00013698,2]
[332110974,1720968636503,-312.51065247,0.00013698,2]
[332110975,1720968636513,-500.0,0.00013698,2]
[332110976,1720968636522,-500.0,0.00013698,2]
[332110977,1720968636532,-500.0,0.00013698,2]
[332110978,1720968636541,-526.07846649,0.00013698,2]
[332110979,1720968636550,-500.0,0.00013698,2]
[332110980,1720968636560,-500.0,0.00013698,2]
[332110981,1720968636570,-500.0,0.00013698,2]
[332110982,1720968636579,-500.0,0.00013698,2]
[332110983,1720968636589,-500.0,0.00013698,2]
[332110984,1720968636598,-500.0,0.00013698,2]
[332110985,1720968636607,-500.0,0.00013698,2]
[332110986,1720968636617,-500.0,0.00013698,2]
[332110987,1720968636626,-500.0,0.00013698,2]
[332110988,1720968636635,-500.0,0.00013698,2]
[332110989,1720968636645,-500.0,0.00013698,2]
[332110990,1720968636654,-500.0,0.00013698,2]
[332110991,1720968636664,-769.96,0.00013698,2]
[332110992,1720968636674,-500.0,0.00013698,2]
[332110993,1720968636684,-500.0,0.00013698,2]
[332110994,1720968636694,-500.0,0.00013698,2]
[332110995,1720968636703,-500.0,0.00013698,2]
[332110996,1720968636712,-500.0,0.00013698,2]
[332110997,1720968636722,-500.0,0.00013698,2]
[332110998,1720968636731,-500.0,0.00013698,2]
[332110999,1720968636740,-500.0,0.00013698,2]
[332111000,1720968636750,-500.0,0.00013698,2]
[332111001,1720968636761,-500.0,0.00013698,2]
[332111002,1720968636773,-500.0,0.00013698,2]
[332111003,1720968636783,-600.74,0.00013698,2]
[332111004,1720968636793,-500.0,0.00013698,2]
[332111005,1720968636804,-500.0,0.00013698,2]
[332111006,1720968636814,-500.0,0.00013698,2]
[332111007,1720968636823,-500.0,0.00013698,2]
[332111008,1720968636833,-500.0,0.00013698,2]
[332111009,1720968636843,-500.0,0.00013698,2]
[332111010,1720968636853,-500.0,0.00013698,2]
[332111011,1720968636863,-500.0,0.00013698,2]
[332111012,1720968636873,-500.0,0.00013698,2]
[332111013,1720968636882,-500.0,0.00013698,2]
[332111014,1720968636891,-500.0,0.00013698,2]
[332111015,1720968636901,-500.0,0.00013698,2]
[332111016,1720968636911,-500.0,0.00013698,2]
[332111017,1720968636920,-895.16,0.00013698,2]
[332111018,1720968636930,-500.0,0.00013698,2]
[332111019,1720968636940,-500.0,0.00013698,2]
[332111020,1720968636949,-500.0,0.00013698,2]
[332111021,1720968636958,-500.0,0.00013698,2]
[332111022,1720968636968,-863.67,0.00013698,2]
[332111023,1720968636978,-430.33868276,0.00013698,2]
[332111024,1720968636987,-500.0,0.00013698,2]
[332111025,1720968636998,-500.0,0.00013698,2]
[332111026,1720968637009,-569.62,0.00013698,2]
[332111027,1720968637020,-856.39,0.00013698,2]
[332111028,1720968637030,-500.0,0.00013698,2]
[332111029,1720968637042,-500.0,0.00013698,2]
[332111030,1720968637052,-500.0,0.00013698,2]
[332111031,1720968637064,-500.0,0.00013698,2]
[332111032,1720968637074,-500.0,0.00013698,2]
[332111033,1720968637085,-500.0,0.00013698,2]